Cogmind - Beta 16.1 @@@ ROGUE MODE // 2026.03.13 @ 11:48:31 Player: RecursiveCharlatan Result: Self-destructed Performance ------------- Evolutions (7) 3500 Regions Visited (20) 4000 Robots Destroyed (427) 2135 Value Destroyed (22923) 22923 Prototype IDs (10) 200 Alien Tech Used (0) 0 Bonus (5939) 5939 TOTAL SCORE: 38697 Bonus ------- High Alert Combat Kills 657 Follower Combat Kills 120 Hunted by Unchained 500 Entered Garrisons 1200 Used RIF Installer 3500 Friendly Fire -38 Cogmind --------- Core Integrity 267/1300 Matter 223/300 Energy 57/150 System Corruption 21% Temperature Cool (0) Movement Treading (160) Location -3/Research Parts ------- > --- POWER (2) -------- Micro Antimatter Reactor > --- PROPULSION (6) --- Armored Medium Treads Armored Medium Treads Armored Medium Treads Biometal Medium Treads Biometal Medium Treads > --- UTILITY (9) ------ Advanced Heat Sink Advanced Heat Sink High-capacity Storage Unit Advanced Signal Interpreter Hardened Medium Armor Plating Graphene Brace Advanced Hacking Suite Improved System Guard > --- WEAPON (4) ------- Gamma Bomb Array > --- INVENTORY (20) --- Light Antimatter Reactor Light Quantum Reactor Light Quantum Reactor Centrium Heavy Treads Advanced Heat Sink Experimental Energy Well (600) Matter Compressor (250) Advanced Sensor Array Quantum Capacitor Advanced Point Defense System Improved Dynamic Insulation System Field Laser Heavy Mass Driver Advanced Remote Datajack Improved Plasma Cutter Peak State ------------ > --- POWER ------------ Antimatter Reactor Particle Reactor > --- PROPULSION ------- Centrium Heavy Treads Centrium Heavy Treads Centrium Heavy Treads > --- UTILITY ---------- Advanced Heat Sink Advanced Heat Sink High-capacity Storage Unit High-capacity Storage Unit Advanced Signal Interpreter Advanced Weapon Cycler Advanced Thermal Shield Advanced Hardlight Generator Advanced Hacking Suite > --- WEAPON ----------- Railgun Railgun Railgun Gamma Bomb Array > --- INVENTORY -------- Light Antimatter Reactor Light Antimatter Reactor Centrium Heavy Treads Centrium Heavy Treads Advanced Heat Sink Matter Compressor Advanced Sensor Array Advanced Particle Charger Graphene Brace Improved Dynamic Insulation System Gamma Rifle Gamma Rifle Railgun Railgun Railgun Railgun Improved Remote Datajack Improved Plasma Cutter [Rating: 157] Favorites ----------- Power Light Antimatter Reactor Engine Ion Engine Power Core Micro Fission Core Reactor Light Antimatter Reactor Propulsion Light Treads Treads Light Treads Leg Myomer Leg Wheel Wheel Hover Unit Antigrav System Utility High-capacity Storage Unit Device Advanced Heat Sink Storage High-capacity Storage Unit Processor Improved Signal Interpreter Hackware Relay Coupler [NC] Protection Improved Medium Armor Plating Weapon KE Penetrator Energy Gun Cooled Plasma Rifle Energy Cannon Nova Cannon Ballistic Gun KE Penetrator Ballistic Cannon Gauss Cannon Launcher Gamma Bomb Array Special Weapon Remote Datajack Impact Weapon Heavy Mace Slashing Weapon Greatsword Build | -11 -10 -10 -8 -8 -8 -8 -7 -7 -7 -7 -6 -6 -6 -6 -5 -5 -4 -4 -4 -3 ------- Run | Yrd Mat Sub Mat Gar Mat Gar Fac Was Fac Gar Fac Gar Fac Gar Fac Gar Fac Upp Upp Res Slots Evolved 14 | . . . 4 . . . 2 . . . 2 . . . 2 . 2 . . 2 Power 1 | . . . . . . . . . . . . . . . 1 . . . . . Propulsion 4 | . . . 1 . . . . . . . 1 . . . . . 2 . . . Utility 7 | . . . 2 . . . 2 . . . 1 . . . . . . . . 2 Weapon 2 | . . . 1 . . . . . . . . . . . 1 . . . . . Parts Attached 301 | 5 6 13 24 3 8 7 20 . 3 16 29 16 5 5 18 6 47 12 1 57 Power 29 | 1 . 1 3 . . . 1 . . 2 2 2 . . 1 . 10 1 . 5 Engine 6 | 1 . 1 2 . . . 1 . . . 1 . . . . . . . . . Core 6 | . . . 1 . . . . . . 2 1 . . . 1 . 1 . . . Reactor 17 | . . . . . . . . . . . . 2 . . . . 9 1 . 5 Propulsion 64 | 2 1 4 3 . 3 2 4 . 1 4 4 4 . . 1 3 10 4 . 14 Treads 51 | 2 1 1 3 . 3 2 4 . 1 4 4 4 . . 1 3 4 . . 14 Leg 10 | . . 1 . . . . . . . . . . . . . . 5 4 . . Wheel 2 | . . 2 . . . . . . . . . . . . . . . . . . Hover 1 | . . . . . . . . . . . . . . . . . 1 . . . Flight . | . . . . . . . . . . . . . . . . . . . . . Utility 108 | 1 2 1 7 2 3 3 8 . 2 5 15 7 1 2 8 2 15 4 1 19 Device 45 | . 1 . 2 1 1 1 2 . . 1 5 2 1 2 6 . 7 3 . 10 Storage 6 | 1 1 . 1 . . . . . . . . . . . . . 1 . . 2 Processor 16 | . . . 1 1 . . 2 . 1 . 5 1 . . . 1 3 . . 1 Hackware 9 | . . . . . . . 1 . . . 2 1 . . 1 . 1 1 1 1 Protection 32 | . . 1 3 . 2 2 3 . 1 4 3 3 . . 1 1 3 . . 5 Artifact . | . . . . . . . . . . . . . . . . . . . . . Weapon 100 | 1 3 7 11 1 2 2 7 . . 5 8 3 4 3 8 1 12 3 . 19 Energy Gun 23 | . 2 1 2 . . 1 3 . . 3 . . . . 1 . . 3 . 7 Energy Cannon 3 | . . . 1 . . . . . . . . . . . . . . . . 2 Ballistic Gun 58 | 1 . 4 7 . 1 1 2 . . 2 7 2 2 3 5 . 11 . . 10 Ballistic Cannon 4 | . . 1 . . . . . . . . 1 . 1 . 1 . . . . . Launcher 4 | . . 1 . . 1 . . . . . . 1 . . . 1 . . . . Special Weapon 6 | . 1 . . 1 . . 1 . . . . . 1 . 1 . 1 . . . Impact Weapon 1 | . . . 1 . . . . . . . . . . . . . . . . . Slashing Weapon 1 | . . . . . . . 1 . . . . . . . . . . . . . Piercing Weapon . | . . . . . . . . . . . . . . . . . . . . . Special Melee Weapon . | . . . . . . . . . . . . . . . . . . . . . Unidentified Prototypes 7 | . . . 1 . . . 1 . . 1 . . . . 1 . 1 . . 2 Corrupted Parts 5 | . . . . . . . . . . 1 . . . . . . 2 2 . . System Corruption 25 | . . . . . . . . . . 7 . . . . . . 12 6 . . Parts Lost 136 | . . 11 5 . 1 7 3 . 2 15 1 4 . . 5 1 29 12 . 40 Power 14 | . . 2 . . . . . . . 2 . . . . 1 . 5 . . 4 Propulsion 37 | . . 4 1 . 1 3 1 . 1 6 . 2 . . . . 9 4 . 5 Utility 40 | . . 1 1 . . 2 2 . 1 4 1 1 . . 4 1 6 3 . 13 Weapon 45 | . . 4 3 . . 2 . . . 3 . 1 . . . . 9 5 . 18 Highest Loss Streak 17 | . . 4 3 . 1 5 3 . 2 5 1 2 . . 3 1 17 6 . 6 To Critical Strikes 5 | . . 1 . . . . . . . . . . . . . . . 2 . 2 Average Backups 17 | 1 7 12 14 19 19 19 19 19 19 18 19 19 18 19 18 18 16 16 18 17 Power 1 | . 1 . . 1 1 1 1 1 1 . 1 1 1 1 . . . 2 3 2 Propulsion 1 | . . 1 2 3 2 1 . . . . . . 1 1 1 1 . . . 1 Utility 7 | . . 2 2 4 6 7 8 10 10 12 10 9 8 9 7 7 6 6 8 6 Weapon 6 | 1 4 8 7 10 9 8 8 8 8 4 6 5 6 7 7 7 6 5 6 3 Tool/Special . | . . . . . . . . . . . . . . . . . . . . . Unused Backups 36 | . . . 3 . 1 . 2 . . . 5 3 1 . 1 1 6 1 . 12 Power 3 | . . . . . . . . . . . . 1 . . . . . . . 2 Propulsion 4 | . . . 2 . . . . . . . . . . . . . 1 . . 1 Utility 11 | . . . . . . . 1 . . . 3 2 . . . . 2 1 . 2 Weapon 17 | . . . 1 . 1 . 1 . . . 2 . 1 . 1 1 3 . . 6 Tool/Special 1 | . . . . . . . . . . . . . . . . . . . . 1 Average Slot Usage (%) 85 | . 92 73 97 100 99 96 86 88 89 73 87 92 86 85 84 87 83 76 89 79 Engine 4 | . 14 10 5 9 9 9 7 7 7 . 2 4 . . . . . . . . Core 1 | . . . 3 . . . . . . 5 3 . . . 4 5 . . . . Reactor 2 | . . . . . . . . . . . . 1 6 6 4 5 7 10 10 8 Treads 16 | . 28 15 26 27 26 24 22 23 22 11 15 19 13 13 11 10 9 7 . 13 Leg 1 | . . . . . . . . . . . . . . . . . 8 4 21 . Device 12 | . 5 1 6 9 15 10 17 7 5 6 14 13 13 13 18 26 14 11 15 15 Storage 7 | . 17 14 9 9 9 9 7 7 7 7 6 6 6 6 5 5 5 5 5 6 Processor 7 | . . . 7 5 . . 8 15 22 9 8 13 20 20 10 1 4 10 10 6 Hackware 1 | . . . . . . . . 3 . . 4 1 . . . . 3 5 5 4 Protection 6 | . . 2 11 12 10 16 3 7 7 13 8 11 6 5 2 5 3 . . 2 Energy Gun 3 | . 10 1 5 . . 7 3 . . 10 . . . . 1 5 1 8 10 2 Ballistic Gun 15 | . 14 20 16 24 26 18 5 . . 5 16 19 19 20 20 17 18 7 5 12 Special Weapon 1 | . 1 4 . . . . . 7 7 . . . . . . . . 2 5 . Peak Build Rating 157 | 5 8 16 42 44 43 41 44 41 45 47 75 102 98 99 114 118 119 110 108 157 Average Rating 68 | 3 6 11 34 43 41 36 39 40 42 35 66 72 97 98 108 112 104 95 107 145 On Entrance 60 | . 5 8 11 42 43 41 35 41 40 45 46 75 97 98 99 114 113 110 106 108 Avg Prop Armor Cover (%) 5 | . . 11 . . . . . . . . . . . . . . 5 . . 8 Naked Turns . | . . . . . . . . . . . . . . . . . . . . . Heaviest Build 154 | 12 33 35 76 76 76 75 72 66 70 101 81 108 93 90 105 107 114 103 102 154 Greatest Support 240 | 40 40 40 84 84 84 70 68 60 68 87 137 145 130 130 130 150 150 127 80 240 Greatest Overweight (x) 32 | . . 2 2 . 1 1 1 1 1 18 . 1 . . . 1 21 32 1 1 Average Overweight (x) . | . . . . . . 1 1 1 . 3 . . . . . . . 1 1 . Largest Inventory Capacity 20 | 8 15 15 20 20 20 20 20 20 20 20 20 20 20 20 20 20 20 20 20 20 Average Capacity 18 | 6 12 15 15 20 20 20 20 20 20 20 20 20 20 20 20 20 20 20 20 20 Most Carried 20 | 3 11 15 18 20 20 20 20 19 20 20 20 20 20 20 20 20 20 20 19 20 Average Carried 17 | 2 7 12 14 19 19 19 19 19 19 18 19 19 19 20 19 19 17 17 19 19 Final Capacity 20 | 8 15 15 20 20 20 20 20 20 20 20 20 20 20 20 20 20 20 20 20 20 Final Carried 20 | 3 11 14 18 20 20 20 19 19 20 20 20 19 20 20 20 20 20 19 19 18 Class Distribution -------------------- 31% | Scavenger-Tank 20% | Tank 17% | Mutant 10% | Bothacker-Tank 5% | Bothacker-Gladiator 4% | Bothacker-Mutant 3% | Gunner Dominant Class ---------------- Mutant | -10/Materials Mutant | -10/Subcaves Scavenger-Tank | -8/Materials Tank | -8/Garrison Gunner | -8/Materials Bothacker-Tank | -8/Garrison Bothacker-Gladiator | -7/Factory Bothacker-Gladiator | -7/Waste Scavenger-Gladiator | -7/Factory Bothacker-Mutant | -7/Garrison Bothacker-Tank | -6/Factory Scavenger-Tank | -6/Garrison Tank | -6/Factory Tank | -6/Garrison Tank | -5/Factory Scavenger-Tank | -5/Garrison Scavenger-Tank | -4/Factory Scavenger-Tank | -4/Upper Caves Scavenger-Tank | -4/Upper Caves Scavenger-Tank | -3/Research Resources | -11 -10 -10 -8 -8 -8 -8 -7 -7 -7 -7 -6 -6 -6 -6 -5 -5 -4 -4 -4 -3 ----------- Run | Yrd Mat Sub Mat Gar Mat Gar Fac Was Fac Gar Fac Gar Fac Gar Fac Gar Fac Upp Upp Res Matter Collected 16707 | 241 203 405 516 428 448 430 395 . 40 610 1362 855 258 897 1380 835 2530 711 34 4129 Remotely 2779 | . . . . . . . . . . . 1155 488 . 258 75 . 803 . . . Salvage Created 23149 | . 408 523 693 464 611 655 1232 . 40 1271 1755 1199 332 1625 1688 1929 2956 459 . 5309 Parts 1131 | . 34 43 47 30 30 38 53 . 6 39 104 54 14 67 86 71 145 18 . 252 Haulers Intercepted 2 | . 1 . . . . . . . . . . . . . . . . . . 1 Recyclers Shooed 9 | . 1 . . . . . . . . . . . . . 1 . 3 . . 4 Parts Field Recycled . | . . . . . . . . . . . . . . . . . . . . . Retrieved Matter . | . . . . . . . . . . . . . . . . . . . . . Parts Self-Destructed 16 | . . 10 . . . . . . . . . . . . . . . 6 . . Prevented . | . . . . . . . . . . . . . . . . . . . . . Parts Restored . | . . . . . . . . . . . . . . . . . . . . . Kills | -11 -10 -10 -8 -8 -8 -8 -7 -7 -7 -7 -6 -6 -6 -6 -5 -5 -4 -4 -4 -3 ------- Run | Yrd Mat Sub Mat Gar Mat Gar Fac Was Fac Gar Fac Gar Fac Gar Fac Gar Fac Upp Upp Res Combat Hostiles Destroyed 382 | . 11 14 19 13 11 20 14 . 1 26 29 24 7 31 25 22 40 6 . 69 Melee 13 | . . . . . . . 11 . 1 1 . . . . . . . . . . Guns 326 | . 11 12 19 13 11 20 3 . . 19 29 24 7 31 25 16 35 6 . 45 Cannons 13 | . . 1 . . . . . . . . . . . . . . . . . 12 AOE 16 | . . 1 . . . . . . . 6 . . . . . 4 4 . . 1 Classes Destroyed 19 | . 5 2 2 2 . 1 . . . . 2 . . . 2 . 1 1 . 1 Worker 8 | . . . . . . . . . . . 1 . . . 2 . 3 . . 2 Builder 6 | . . . . . . . . . . . . . . . 1 . 2 . . 3 Hauler 2 | . 1 . . . . . . . . . . . . . . . . . . 1 Recycler 10 | . 1 . . . . . 4 . . . . . . . 2 . 3 . . . Operator 1 | . . . . . . . . . . . 1 . . . . . . . . . Watcher 17 | . 1 . 2 . 1 . 3 . . . 3 . 1 . 2 . 3 . . 1 Swarmer 88 | . 6 3 10 6 . 7 . . . 10 5 6 2 4 4 7 10 . . 8 Grunt 125 | . 5 . 6 4 5 9 5 . . 10 8 8 4 14 5 9 9 . . 24 Brawler 6 | . . . . 1 1 . 1 . . . 1 . . . . 1 . . . 1 Duelist 4 | . . . . 1 . . . . . 1 . . . 2 . . . . . . Sentry 47 | . . . 2 1 5 1 3 . . 2 8 8 . 6 3 . 3 . . 5 Hunter 32 | . . . 1 . . . 3 . . . 1 2 . 2 3 5 5 2 . 8 Programmer 56 | . . . . . . 3 2 . 1 3 6 . 1 3 10 . 12 . . 15 Heavy 2 | . . . . . . . . . . . . . . . 1 . . . . 1 Behemoth 2 | . . . . . . . . . . . . . . . . . 1 . . 1 Cetus Guard 1 | . . . . . . . . . . . . . . . . . . . . 1 Quarantine Guard 1 | . . . . . . . . . . . . . . . . . . . . 1 S7 Guard 1 | . . . . . . . . . . . . . . . . . . . . 1 CL-0N3 Special 2 | . . . . . . . . . . . . . . . . . . . . 2 Executioner 1 | . . . . . . . . . . . . . . . . . . . . 1 Artisan 1 | . . 1 . . . . . . . . . . . . . . . . . . Subdweller 11 | . . 11 . . . . . . . . . . . . . . . . . . Thug 2 | . . . . . . . . . . . . . . . . . . 2 . . Butcher 1 | . . . . . . . . . . . . . . . . . . 1 . . Mutant 1 | . . . . . . . . . . . . . . . . . . 1 . . Best Kill Streak 11 | . 3 3 6 8 5 5 4 . 1 8 4 8 3 10 6 11 7 2 . 9 Combat Bots Only 11 | . 3 3 5 8 4 5 3 . 1 8 4 8 3 10 4 11 7 2 . 7 Max Kills in Single Turn 3 | . 2 1 2 2 1 2 1 . 1 3 2 2 1 2 2 2 3 1 . 2 Gunslinging 1 | . . . 1 1 . 1 . . . 1 1 1 . 1 1 1 1 . . 1 Exploded 3 | . . 1 . . . . . . . 3 . . . . . 2 3 . . 1 Melee 1 | . . . . . . . 1 . 1 1 . . . . . . . . . . Uniques/NPCs Destroyed . | . . . . . . . . . . . . . . . . . . . . . Combat | -11 -10 -10 -8 -8 -8 -8 -7 -7 -7 -7 -6 -6 -6 -6 -5 -5 -4 -4 -4 -3 -------- Run | Yrd Mat Sub Mat Gar Mat Gar Fac Was Fac Gar Fac Gar Fac Gar Fac Gar Fac Upp Upp Res Hostile Shots Fired 3261 | . 50 86 100 75 52 138 139 . 6 277 229 329 18 127 183 66 408 107 . 871 Missed 902 | . 12 24 15 14 10 28 38 . . 69 77 131 6 41 38 15 116 29 . 239 Hits 2359 | . 38 62 85 61 42 110 101 . 6 208 152 198 12 86 145 51 292 78 . 632 Melee 12 | . . . . 4 . . . . . 3 . . . 4 . . . 1 . . Projectile 2347 | . 38 62 85 57 42 110 101 . 6 205 152 198 12 82 145 51 292 77 . 632 Critical Strikes 78 | . . 2 4 2 3 4 3 . . 4 . 1 . 1 2 . 9 10 . 33 Actively Blocked 20 | . . . . . . . . . . . . . . . 2 . 5 . . 13 Part Disruptions 7 | . . . . . . 1 . . . . . . . . 2 . 1 . . 3 Actively Blocked 2 | . . . . . . . . . . . . . . . 2 . . . . . Damage Taken 37515 | . 393 1318 998 693 657 1393 1045 . 88 2308 1747 1440 204 1311 2901 828 6273 993 . 12925 Core 3114 | . 55 192 179 84 71 121 114 . 14 246 109 156 . 138 86 83 410 23 . 1033 Absorbed by Shields 2486 | . . . . . . . . . . . 50 398 . . . 67 103 344 . 1524 Reduced by Siege Mode 918 | . . . . . . . . . . . . . . 33 39 45 206 . . 595 Redirected to Shielding 199 | . . . . . . . . . . . 108 . . . . . 91 . . . Ignored by Resistances 2075 | . . . . . . 21 . . . 201 . 158 . . . . . 180 . 1515 Regen/Repaired (Parts) 776 | . . . . . . . . . . . 535 . . . 241 . . . . . Core Remaining (%) 51 | 100 . 1 . . . 17 . . . 46 . . . 52 . 83 . . 62 . Volleys Fired 1151 | . 56 85 53 24 27 43 18 6 . 80 66 59 11 68 89 63 128 38 . 237 Largest 4 | . 2 2 3 3 3 3 3 1 . 3 3 3 3 3 4 4 4 4 . 4 Hottest 298 | . 100 100 132 84 92 122 128 5 . 178 98 90 90 93 129 123 140 216 . 298 Shots Fired 3222 | . 82 130 143 72 81 126 29 6 . 161 190 161 33 194 278 201 433 110 . 792 Gun 3010 | . 68 89 142 72 80 126 28 . . 156 175 160 33 194 272 199 428 107 . 681 Cannon 129 | . . 11 1 . . . . . . . 11 . . . 4 . . . . 102 Launcher 26 | . . 4 . . 1 . . . . 5 . 1 . . . 2 4 . . 9 Special 57 | . 14 26 . . . . 1 6 . . 4 . . . 2 . 1 3 . . Kinetic 2624 | . 42 90 112 72 80 91 10 . . 45 186 160 33 194 264 165 421 56 . 603 Thermal 424 | . 38 26 28 . . 35 10 . . 106 . . . . 12 34 7 24 . 104 Explosive 11 | . . 4 . . 1 . . . . 5 . 1 . . . . . . . . Electromagnetic 146 | . 2 10 3 . . . 8 . . 5 . . . . . 2 4 27 . 85 Robot Hit Streak 38 | . 11 14 10 9 14 14 6 7 . 26 23 29 13 21 23 24 24 7 . 38 Robot Miss Streak 12 | . 3 4 3 5 3 7 2 . . 12 3 6 1 2 7 3 7 3 . 5 Penetration Max 2 | . . . . 1 1 1 . . . 1 1 1 . . 1 1 1 . . 2 Secondary Targets 68 | . 1 . 3 5 . 4 . . . 5 2 4 1 8 8 5 9 1 . 12 Max Gunslinging Chain 2 | . 1 . 1 1 . 1 . . . 2 1 1 1 1 1 1 1 1 . 2 Shots Hit Robots 2171 | . 42 75 92 42 50 82 45 6 3 135 129 122 23 151 186 132 279 66 . 511 Core Hits 1089 | . 24 31 41 19 19 32 25 . 1 181 65 63 13 64 71 77 131 23 . 209 Critical Kills 26 | . . 1 1 1 1 . . . . . 3 1 . 1 1 1 8 . . 7 Critical Parts Destroyed 45 | . . . . . . 1 . . . . 4 2 . 2 2 4 21 2 . 7 Critical Strikes 99 | . . 3 1 1 1 1 3 . . 2 7 3 . 3 3 6 47 2 . 16 Burn 2 | . . . . . . . 1 . . . . . . . . 1 . . . . Meltdown 2 | . . . . . . . . . . . . . . . . . . . . 2 Destroy 90 | . . 2 1 1 1 1 . . . . 7 3 . 3 3 5 47 2 . 14 Corrupt 2 | . . 1 . . . . . . . 1 . . . . . . . . . . Sever 3 | . . . . . . . 2 . . 1 . . . . . . . . . . Melee Attacks 67 | . . . 9 6 1 2 40 . 4 5 . . . . . . . . . . Impact 20 | . . . 9 6 1 2 2 . . . . . . . . . . . . . Slashing 47 | . . . . . . . 38 . 4 5 . . . . . . . . . . Piercing . | . . . . . . . . . . . . . . . . . . . . . Sneak Attacks 4 | . . . . . . . 3 . 1 . . . . . . . . . . . Combat Hostiles 2 | . . . . . . . 2 . . . . . . . . . . . . . Follow-up Attacks . | . . . . . . . . . . . . . . . . . . . . . Damage Inflicted 55460 | . 529 1330 1203 885 1150 1783 1913 . 224 4035 3074 2927 555 3433 4962 3632 6726 1540 . 15559 Guns 46199 | . 521 975 1149 885 1067 1783 319 . . 3012 2929 2648 555 3433 4875 3101 5838 1540 . 11569 Cannons 3061 | . . 166 . . . . . . . . 136 . . . . . . . . 2759 Explosions 4082 | . . 189 . . 83 . . . . 803 . 279 . . 87 531 888 . . 1222 Melee 2092 | . . . 54 . . . 1594 . 224 220 . . . . . . . . . . Ramming 26 | . 8 . . . . . . . . . 9 . . . . . . . . 9 Kinetic 40172 | . 351 1066 819 885 1067 1329 132 . . 607 3065 2648 555 3433 4633 2605 5718 747 . 10512 Thermal 7461 | . 142 . 303 . . 454 95 . . 2302 . . . . 242 496 120 432 . 2875 Explosive 1924 | . . 189 . . 83 . . . . 803 . 279 . . 74 . 496 . . . Electromagnetic 3785 | . 28 75 27 . . . 92 . . 103 . . . . 13 531 392 361 . 2163 Impact 54 | . . . 54 . . . . . . . . . . . . . . . . . Slashing 2038 | . . . . . . . 1594 . 224 220 . . . . . . . . . . Piercing . | . . . . . . . . . . . . . . . . . . . . . Highest Corruption 38 | . . . . . . 3 . 23 24 38 1 1 1 1 4 3 12 17 17 21 Average Corruption 9 | . . . . . . 2 . 16 23 28 1 1 1 1 2 1 8 13 17 12 Corruption Purged 13 | . . . . . . . . . . . . . . . 3 3 7 . . . Corruption Blocked . | . . . . . . . . . . . . . . . . . . . . . Effects 416 | . . . . . . 11 . 12 30 88 5 13 5 5 24 1 75 54 2 91 Message Errors 93 | . . . . . . . . 4 8 23 2 3 . . 4 . 23 9 . 17 Matter Fused 89 | . . . . . . 1 . 2 4 14 1 2 1 2 9 . 17 19 2 15 Heat Flow Errors 41 | . . . . . . 1 . 1 4 8 1 2 2 . 4 . 3 6 . 9 Energy Discharges 49 | . . . . . . 2 . 2 6 12 . 1 1 . 3 . 5 8 . 9 Parts Rejected 7 | . . . . . . 1 . . . 2 . . . . 1 . . 1 . 2 Parts Fused 2 | . . . . . . . . . . . . . . . . 1 . . . 1 Data Loss (minor) 52 | . . . . . . 4 . 1 3 9 . 2 . 1 . . 15 5 . 12 Data Loss (major) 24 | . . . . . . . . 1 5 4 1 2 . . 1 . 3 1 . 6 Misfires 11 | . . . . . . 1 . . . 2 . 1 . 1 1 . 2 1 . 2 Alerts 12 | . . . . . . 1 . . . 3 . . 1 . . . 3 1 . 3 Misdirections 2 | . . . . . . . . 1 . . . . . . . . . . . 1 Weapon Failures 34 | . . . . . . . . . . 11 . . . 1 1 . 4 3 . 14 Overload Shots . | . . . . . . . . . . . . . . . . . . . . . Overflow Damage 245 | . . . 32 . . . 75 . 8 . . . . . . 16 36 . . 78 Projectiles 38 | . . . . . . . . . . . . . . . . . . . . 38 Explosions 92 | . . . . . . . . . . . . . . . . 16 36 . . 40 Melee 115 | . . . 32 . . . 75 . 8 . . . . . . . . . . . Knockbacks 6 | . . 4 . . . . . . . . 2 . . . . . . . . . Impact . | . . . . . . . . . . . . . . . . . . . . . Kinetic 6 | . . 4 . . . . . . . . 2 . . . . . . . . . Secondary . | . . . . . . . . . . . . . . . . . . . . . Self-Inflicted Damage 564 | . . 22 . . . . . . . 80 . 107 . . 148 37 65 . . 105 Shots 30 | . . 1 . . . . . . . 4 . 6 . . 3 4 6 . . 6 Rammed 4 | . 1 . . . . . . . . . 2 . . . . . . . . 1 Targets Rammed 4 | . 1 . . . . . . . . . 2 . . . . . . . . 1 Kicked . | . . . . . . . . . . . . . . . . . . . . . Crushed . | . . . . . . . . . . . . . . . . . . . . . Highest Temperature 700 | . 186 . 226 192 87 344 183 212 255 321 63 230 111 47 497 159 368 483 . 700 Average Temperature 101 | . 56 . 68 60 23 137 73 116 105 97 10 78 47 18 121 38 98 145 . 123 Received Heat Transfer 6497 | . 141 117 333 153 306 513 261 . . 564 399 242 54 315 231 107 645 118 . 1998 Effects 32 | . . . . . . . . . . 2 . . . . 5 . 1 8 . 16 Shutdowns 14 | . . . . . . . . . . . . . . . 2 . 1 3 . 8 Energy Bleed 5 | . . . . . . . . . . 2 . . . . . . . 2 . 1 Interference 5 | . . . . . . . . . . . . . . . 3 . . . . 2 Matter Decay 3 | . . . . . . . . . . . . . . . . . . 2 . 1 Damage (minor) 1 | . . . . . . . . . . . . . . . . . . 1 . . Damage (major) 2 | . . . . . . . . . . . . . . . . . . . . 2 Damage (core) 2 | . . . . . . . . . . . . . . . . . . . . 2 Siege Activations 17 | . . . . . . . . . . . . . . 1 5 2 1 . . 8 Total Turns 411 | . . . . . . . . . . . . . . 42 112 33 44 . . 180 Longest Duration 79 | . . . . . . . . . . . . . . 42 79 20 44 . . 49 Martial Activations . | . . . . . . . . . . . . . . . . . . . . . Shielding Activations . | . . . . . . . . . . . . . . . . . . . . . Robots Disrupted 1 | . . . . . . . . . . . . . . . . . . . . 1 Combat Hostiles 1 | . . . . . . . . . . . . . . . . . . . . 1 Robots Corrupted 13 | . . . 1 . . . . . . 1 . . . . . 2 1 . . 8 Combat Hostiles 11 | . . . . . . . . . . . . . . . . 2 1 . . 8 Parts Fried 24 | . . . . . . . . . . 3 . . . . . 7 1 . . 13 Impact Corruptions 2 | . . . 2 . . . . . . . . . . . . . . . . . Robots Melted 3 | . . . . . . . . . . . . . . . . . . . . 3 Combat Hostiles 3 | . . . . . . . . . . . . . . . . . . . . 3 Parts Melted 20 | . . 1 1 . . 2 1 . . 1 . . . . 1 3 . 2 . 8 Heat Transferred 8759 | . 325 . 592 . . 851 259 . . 1835 . . . . 450 1150 200 592 . 2505 Parts Sabotaged . | . . . . . . . . . . . . . . . . . . . . . Parts Stolen . | . . . . . . . . . . . . . . . . . . . . . Parts Stripped . | . . . . . . . . . . . . . . . . . . . . . Power Chain Reactions 4 | . . . . . . . . . . . . . . . . . 1 . . 3 Alert | -11 -10 -10 -8 -8 -8 -8 -7 -7 -7 -7 -6 -6 -6 -6 -5 -5 -4 -4 -4 -3 ------- Run | Yrd Mat Sub Mat Gar Mat Gar Fac Was Fac Gar Fac Gar Fac Gar Fac Gar Fac Upp Upp Res Maximum Alert Level 3 | . . . 1 2 1 2 1 . . 2 1 3 2 2 1 2 2 . . 1 Low Security (%) 53 | 100 100 . 93 25 53 18 98 100 100 37 58 . . 18 62 6 15 . . 78 Level 1 30 | . . . 6 24 46 70 1 . . 10 41 12 80 15 37 20 79 . . 21 Level 2 14 | . . . . 49 . 10 . . . 51 . 35 19 66 . 73 4 . . . Level 3 1 | . . . . . . . . . . . . 52 . . . . . . . . Level 4 . | . . . . . . . . . . . . . . . . . . . . . Level 5 . | . . . . . . . . . . . . . . . . . . . . . High Security . | . . . . . . . . . . . . . . . . . . . . . Max Security . | . . . . . . . . . . . . . . . . . . . . . Peak Influence 935 | . 103 . 219 454 244 407 213 27 23 543 392 935 490 644 338 643 413 . . 341 Initial 490 | . . . . 59 221 101 213 27 . . 284 270 490 167 338 169 337 . . . Average 212 | . 32 . 102 314 195 302 39 3 1 304 171 644 321 445 137 460 281 . . 133 Influence Increases 8797 | . 434 70 588 395 271 376 413 . 23 673 808 745 165 477 606 484 1024 30 . 1215 Destroy 0b10 Robot/C 5177 | . 220 60 380 260 165 300 210 . 15 390 435 435 105 378 300 264 480 24 . 756 Destroy 0b10 Robot/NC 198 | . 15 . 10 . 4 . 28 . . 24 20 . 4 . 21 18 33 . . 21 Destroy Leader 980 | . 54 10 74 10 66 24 78 . 8 24 158 32 26 24 76 24 114 6 . 172 Allied During Kill 35 | . . . . . . . . . . . . 25 . . . . . . . 10 Successful Hack 259 | . 63 . 26 14 . 11 29 . . . 77 . 18 . 3 10 . . . 8 Select Force Hacks 60 | . 60 . . . . . . . . . . . . . . . . . . . Disable Machine 405 | . . . 30 . 12 . 24 . . . 36 12 12 . 81 . 198 . . . Anti-Garrison Action 495 | . . . . 88 . . . . . 113 . 114 . 30 . 150 . . . . Destroy Structure 627 | . 7 . 8 23 12 5 8 . . 38 10 43 . 9 116 18 190 . . 140 Partial Spotted 30 | . . . . . 12 . . . . . . . . 9 . . . . . 9 Lose Combat Pursuer 531 | . 15 . 60 . . 36 36 . . 84 72 84 . 27 9 . 9 . . 99 Influence Decreases 8565 | . 343 161 497 32 569 125 741 79 23 130 964 197 861 72 1008 83 1276 421 . 983 Entered New Map 2334 | . . 44 . 32 233 55 194 52 . . 259 117 445 72 306 73 306 146 . . Time Decay 4885 | . 343 111 467 . 326 . 387 27 23 . 695 . 416 . 652 . 680 205 . 553 Lost Part 1126 | . . 6 30 . 10 70 10 . . 130 10 40 . . 50 10 290 70 . 400 Lost Ally 70 | . . . . . . . . . . . . 40 . . . . . . . 30 Purge Threat 150 | . . . . . . . 150 . . . . . . . . . . . . . Squads Dispatched 56 | . 2 . 3 . 2 . 3 . 1 . 8 . 2 . 8 . 11 . . 16 Investigation 6 | . 2 . 2 . . . . . . . 1 . . . 1 . . . . . Extermination 24 | . . . . . . . 3 . 1 . 5 . 1 . 4 . 4 . . 6 Reinforcement 18 | . . . 1 . 1 . . . . . 1 . 1 . 2 . 2 . . 10 Assault 2 | . . . . . . . . . . . . . . . . . 2 . . . Garrison 6 | . . . . . 1 . . . . . 1 . . . 1 . 3 . . . Intercept . | . . . . . . . . . . . . . . . . . . . . . Searches Triggered . | . . . . . . . . . . . . . . . . . . . . . Unchained Authorized 1 | . . . . . . . . . . . . . . . . . . . . 1 Construction Impeded 6 | . . . . . . . . . . . . . . . 1 . 1 . . 4 Haulers Reinforced 2 | . . . . . . . . . . . . . . . . . . . . 2 Active Scanning Responses . | . . . . . . . . . . . . . . . . . . . . . Cargo Convoy Interrupts . | . . . . . . . . . . . . . . . . . . . . . Stealth | -11 -10 -10 -8 -8 -8 -8 -7 -7 -7 -7 -6 -6 -6 -6 -5 -5 -4 -4 -4 -3 --------- Run | Yrd Mat Sub Mat Gar Mat Gar Fac Was Fac Gar Fac Gar Fac Gar Fac Gar Fac Upp Upp Res Distress Signals 17 | . 2 . 1 . 3 . 1 . . . 2 . . . 2 . . . . 6 Communications Jammed 20 | . . . . . . . . . . . . . . . . . 20 . . . Distress Signals 20 | . . . . . . . . . . . . . . . . . 20 . . . Times Spotted 508 | . 22 14 36 14 17 20 22 6 2 30 43 30 10 30 39 20 49 12 . 92 Peak Tracking Total 10 | . 5 3 6 8 3 8 3 3 2 10 4 6 3 5 4 10 7 4 . 9 Tactical Retreats 32 | . 1 . 3 . . 1 2 . . 4 6 4 . 1 1 . 1 1 . 7 Traps | -11 -10 -10 -8 -8 -8 -8 -7 -7 -7 -7 -6 -6 -6 -6 -5 -5 -4 -4 -4 -3 ------- Run | Yrd Mat Sub Mat Gar Mat Gar Fac Was Fac Gar Fac Gar Fac Gar Fac Gar Fac Upp Upp Res Traps Triggered 35 | . 1 . 2 . . 12 1 . . 4 1 . . 4 4 . 5 . . 1 Indirectly 4 | . . . . . . . . . . . . . . . . . 3 . . 1 Trap Hack Attempts . | . . . . . . . . . . . . . . . . . . . . . Triggered . | . . . . . . . . . . . . . . . . . . . . . Disarmed . | . . . . . . . . . . . . . . . . . . . . . Reprogrammed . | . . . . . . . . . . . . . . . . . . . . . Reused . | . . . . . . . . . . . . . . . . . . . . . Traps Extracted . | . . . . . . . . . . . . . . . . . . . . . Installed . | . . . . . . . . . . . . . . . . . . . . . Triggered . | . . . . . . . . . . . . . . . . . . . . . Machines | -11 -10 -10 -8 -8 -8 -8 -7 -7 -7 -7 -6 -6 -6 -6 -5 -5 -4 -4 -4 -3 ---------- Run | Yrd Mat Sub Mat Gar Mat Gar Fac Was Fac Gar Fac Gar Fac Gar Fac Gar Fac Upp Upp Res Machines Disabled 52 | . . . 2 2 1 . 2 . . 1 3 4 1 1 9 4 22 . . . Max in Single Turn 7 | . . . 1 1 1 . 1 . . 1 1 1 1 1 3 1 7 . . . Garrison Access 5 | . . . . . . . 1 . . . 1 . 1 . 1 . 1 . . . Garrison Relay 10 | . . . . 2 . . . . . 1 . 3 . 1 . 3 . . . . Machines Repaired . | . . . . . . . . . . . . . . . . . . . . . Machines Dismantled . | . . . . . . . . . . . . . . . . . . . . . Machines Sabotaged . | . . . . . . . . . . . . . . . . . . . . . Overloaded Fab Kills . | . . . . . . . . . . . . . . . . . . . . . Hacking | -11 -10 -10 -8 -8 -8 -8 -7 -7 -7 -7 -6 -6 -6 -6 -5 -5 -4 -4 -4 -3 --------- Run | Yrd Mat Sub Mat Gar Mat Gar Fac Was Fac Gar Fac Gar Fac Gar Fac Gar Fac Upp Upp Res Machines Accessed 68 | . 10 1 8 2 4 1 7 . 2 . 11 2 4 1 8 2 3 . . 2 Terminals 41 | . 8 . 6 2 3 1 5 . 1 . 5 2 . 1 3 2 . . . 2 Fabricators 2 | . . . . . . . . . . . . . . . 2 . . . . . Repair Stations 6 | . . . . . . . 1 . . . 2 . 1 . 1 . 1 . . . Recycling Units 2 | . 2 . . . . . . . . . . . . . . . . . . . Scanalyzers 5 | . . . 1 . . . . . . . 2 . 1 . . . 1 . . . Garrison Access 11 | . . . 1 . 1 . 1 . 1 . 2 . 2 . 2 . 1 . . . Total Hacks 147 | . 23 4 24 2 9 3 15 . 3 . 23 3 8 1 16 5 4 . . 4 Successful 76 | . 15 4 12 1 4 1 10 . 1 . 12 2 4 . 6 1 2 . . 1 Failed 71 | . 8 . 12 1 5 2 5 . 2 . 11 1 4 1 10 4 2 . . 3 Catastrophic 11 | . 2 . 2 1 . 1 . . 1 . 1 . . 1 . 1 . . . 1 Database Lockouts . | . . . . . . . . . . . . . . . . . . . . . Manual 75 | . 23 . 20 . 8 1 11 . 1 . 3 . . . 8 . . . . . Terminals 97 | . 21 . 20 2 8 3 12 . 2 . 8 3 . 1 8 5 . . . 4 Fabricators 2 | . . . . . . . . . . . . . . . 2 . . . . . Repair Stations 17 | . . . . . . . 2 . . . 8 . 1 . 4 . 2 . . . Recycling Units 2 | . 2 . . . . . . . . . . . . . . . . . . . Scanalyzers 14 | . . . 3 . . . . . . . 5 . 5 . . . 1 . . . Garrison Access 11 | . . . 1 . 1 . 1 . 1 . 2 . 2 . 2 . 1 . . . Terminal Hacks 16 | . 2 4 . 1 . 1 1 . . . 3 2 . . . 1 . . . 1 Record 4 | . . 4 . . . . . . . . . . . . . . . . . . Part Schematic 2 | . 1 . . . . . . . . . 1 . . . . . . . . . Open Door 1 | . . . . . . . . . . . . 1 . . . . . . . . Emergency Access Points 1 | . . . . . . 1 . . . . . . . . . . . . . . Terminal Index 1 | . 1 . . . . . . . . . . . . . . . . . . . Unreport Threat 1 | . . . . . . . 1 . . . . . . . . . . . . . Locate Traps 1 | . . . . . . . . . . . 1 . . . . . . . . . Hauler Manifests 1 | . . . . . . . . . . . 1 . . . . . . . . . Zone Layout 1 | . . . . . . . . . . . . . . . . . . . . 1 Garrison Registry 2 | . . . . 1 . . . . . . . 1 . . . . . . . . Security Stations 1 | . . . . . . . . . . . . . . . . 1 . . . . Fabricator Hacks 1 | . . . . . . . . . . . . . . . 1 . . . . . Network Status 1 | . . . . . . . . . . . . . . . 1 . . . . . Repair Station Hacks 7 | . . . . . . . 1 . . . 3 . . . 2 . 1 . . . Scan Component 5 | . . . . . . . 1 . . . 2 . . . 1 . 1 . . . Repair 2 | . . . . . . . . . . . 1 . . . 1 . . . . . Recycling Unit Hacks . | . . . . . . . . . . . . . . . . . . . . . Scanalyzer 8 | . . . 3 . . . . . . . 3 . 2 . . . . . . . Insert Component 4 | . . . 1 . . . . . . . 2 . 1 . . . . . . . Analyze 1 | . . . 1 . . . . . . . . . . . . . . . . . Retrieve Study 3 | . . . 1 . . . . . . . 1 . 1 . . . . . . . Garrison Access Hacks 11 | . . . 1 . 1 . 1 . 1 . 2 . 2 . 2 . 1 . . . Unlock Access 6 | . . . 1 . 1 . . . 1 . 1 . 1 . 1 . . . . . Seal Access 5 | . . . . . . . 1 . . . 1 . 1 . 1 . 1 . . . Unauthorized Hacks 33 | . 13 . 8 . 3 . 7 . . . 1 . . . 1 . . . . . Terminals 31 | . 11 . 8 . 3 . 7 . . . 1 . . . 1 . . . . . Assimilate 3 | . 3 . . . . . . . . . . . . . . . . . . . Botnet 5 | . 1 . 1 . 1 . 2 . . . . . . . . . . . . . Disrupt 1 | . 1 . . . . . . . . . . . . . . . . . . . Operators 3 | . 1 . 1 . . . 1 . . . . . . . . . . . . . Skim 19 | . 5 . 6 . 2 . 4 . . . 1 . . . 1 . . . . . Fabricators . | . . . . . . . . . . . . . . . . . . . . . Repair Stations . | . . . . . . . . . . . . . . . . . . . . . Recycling Units 2 | . 2 . . . . . . . . . . . . . . . . . . . Tunnel 2 | . 2 . . . . . . . . . . . . . . . . . . . Scanalyzers . | . . . . . . . . . . . . . . . . . . . . . Garrison Access . | . . . . . . . . . . . . . . . . . . . . . Data Cores Recovered 1 | . . . . . . . . . . . 1 . . . . . . . . . Used 1 | . . . . . . . . . . . 1 . . . . . . . . . Hacking Detections 54 | . 8 . 8 1 3 1 6 . 2 . 10 . 2 1 6 2 2 . . 2 Full Trace Events 1 | . . . . . . . . . . . . . . . 1 . . . . . Feedback Events . | . . . . . . . . . . . . . . . . . . . . . Feedback Blocked . | . . . . . . . . . . . . . . . . . . . . . Robot Schematics Acquired . | . . . . . . . . . . . . . . . . . . . . . Robots Built . | . . . . . . . . . . . . . . . . . . . . . Authchips . | . . . . . . . . . . . . . . . . . . . . . Time . | . . . . . . . . . . . . . . . . . . . . . Total Robot Build Rating . | . . . . . . . . . . . . . . . . . . . . . Part Schematics Acquired 3 | . 1 . 1 . . . . . . . 1 . . . . . . . . . Parts Built . | . . . . . . . . . . . . . . . . . . . . . Authchips . | . . . . . . . . . . . . . . . . . . . . . Time . | . . . . . . . . . . . . . . . . . . . . . Total Part Build Rating . | . . . . . . . . . . . . . . . . . . . . . Part Studies Acquired 3 | . . . 1 . . . . . . . 1 . 1 . . . . . . . Parts Repaired 2 | . . . . . . . . . . . 1 . . . 1 . . . . . Time 99 | . . . . . . . . . . . 31 . . . 68 . . . . . Parts Recycled . | . . . . . . . . . . . . . . . . . . . . . Recycled Matter . | . . . . . . . . . . . . . . . . . . . . . Retrieved Matter . | . . . . . . . . . . . . . . . . . . . . . Retrieved Components . | . . . . . . . . . . . . . . . . . . . . . Parts Scanalyzed 3 | . . . 1 . . . . . . . 1 . 1 . . . . . . . Part Schematics Acquired 1 | . . . 1 . . . . . . . . . . . . . . . . . Parts Damaged 1 | . . . . . . . . . . . 1 . . . . . . . . . Bothacking | -11 -10 -10 -8 -8 -8 -8 -7 -7 -7 -7 -6 -6 -6 -6 -5 -5 -4 -4 -4 -3 ------------ Run | Yrd Mat Sub Mat Gar Mat Gar Fac Was Fac Gar Fac Gar Fac Gar Fac Gar Fac Upp Upp Res Used RIF Installer 7 | . . . . 2 . 1 . . . 1 . 1 . 1 . 1 . . . . Threat Obfuscator 2 | . . . . 1 . . . . . . . . . 1 . . . . . . Signal Jammer 1 | . . . . . . . . . . . . 1 . . . . . . . . Zone Cloak 1 | . . . . . . 1 . . . . . . . . . . . . . . Alert ID Control 1 | . . . . . . . . . . . . . . . . 1 . . . . Program Shield 1 | . . . . . . . . . . 1 . . . . . . . . . . Robots Hacked 16 | . . . . . . . 1 6 . . 4 . . . 2 . 1 2 . . Non-combat 8 | . . . . . . . 1 . . . 4 . . . 1 . 1 1 . . Combat 8 | . . . . . . . . 6 . . . . . . 1 . . 1 . . Robot Hacks Applied 16 | . . . . . . . 1 6 . . 4 . . . 2 . 1 2 . . find_chute 1 | . . . . . . . . . . . . . . . 1 . . . . . drop_inventory 4 | . . . . . . . 1 . . . 3 . . . . . . . . . map_route 2 | . . . . . . . . . . . 1 . . . . . 1 . . . ignore_targets 6 | . . . . . . . . 6 . . . . . . . . . . . . streamctrl_high 1 | . . . . . . . . . . . . . . . 1 . . . . . formatsys_low 1 | . . . . . . . . . . . . . . . . . . 1 . . formatsys_high 1 | . . . . . . . . . . . . . . . . . . 1 . . Relay Couplers Released 40 | . . . . 7 . 3 . . . 3 . 11 . 5 . 11 . . . . Machine Destruction 37 | . . . . 7 . . . . . 3 . 11 . 5 . 11 . . . . Programmers 3 | . . . . . . 3 . . . . . . . . . . . . . . Attached 5 | . . . . . . . 1 . . . 1 . . . 1 . 1 1 . . Fabnet Peak Effective % . | . . . . . . . . . . . . . . . . . . . . . Robots Rewired . | . . . . . . . . . . . . . . . . . . . . . Allies Hacked 1 | . . . . . . . . . . . . . . . . . . . . 1 Hacks Repelled . | . . . . . . . . . . . . . . . . . . . . . Allies | -11 -10 -10 -8 -8 -8 -8 -7 -7 -7 -7 -6 -6 -6 -6 -5 -5 -4 -4 -4 -3 -------- Run | Yrd Mat Sub Mat Gar Mat Gar Fac Was Fac Gar Fac Gar Fac Gar Fac Gar Fac Upp Upp Res Total Allies 6 | . 1 . . . . . . . . . . 2 . . 1 . . 2 . . Largest Group 2 | . 1 1 . . . . . . . . . 2 . . 1 . . 2 2 2 Highest-Rated Group 142 | . 10 10 . . . . . . . . . 80 . . 142 . . 82 82 82 Highest-Rated Ally 142 | . 10 10 . . . . . . . . . 51 . . 142 . . 49 49 49 Total Orders 6 | . 2 . . . . . . . . . . . . . 1 . . 2 . 1 STAY 3 | . 1 . . . . . . . . . . . . . 1 . . . . 1 ROAM 1 | . . . . . . . . . . . . . . . . . . 1 . . FOLLOW 2 | . 1 . . . . . . . . . . . . . . . . 1 . . Ally Attacks 38 | . . . . . . . . . . . . 37 . . . . . . . 1 Total Damage 417 | . . . . . . . . . . . . 374 . . . . . . . 43 Kills 5 | . . . . . . . . . . . . 5 . . . . . . . . Allies Corrupted 1 | . . . . . . . . . . . . . . . . . . . . 1 Allies Melted . | . . . . . . . . . . . . . . . . . . . . . Intel | -11 -10 -10 -8 -8 -8 -8 -7 -7 -7 -7 -6 -6 -6 -6 -5 -5 -4 -4 -4 -3 ------- Run | Yrd Mat Sub Mat Gar Mat Gar Fac Was Fac Gar Fac Gar Fac Gar Fac Gar Fac Upp Upp Res Active Infowar (turns) 11551 | . 669 341 1648 . . . 1674 312 505 . 706 1021 1012 1057 2087 . 519 . . . Optics 5670 | . . . . . . . . . . . 493 1021 1012 1057 2087 . . . . . Sensors 3010 | . . . . . . . 1674 312 505 . . . . . . . 519 . . . IFF 1844 | . . . . . . . . . . . 706 5 . . 1133 . . . . . Seismic 1010 | . 669 341 . . . . . . . . . . . . . . . . . . Machine Analysis 1648 | . . . 1648 . . . . . . . . . . . . . . . . . Robot Analysis Total . | . . . . . . . . . . . . . . . . . . . . . Derelict Logs Recovered 3 | . . 2 . . . . . . . . . . . . . . . 1 . . Drone Launches . | . . . . . . . . . . . . . . . . . . . . . Drone Recoveries . | . . . . . . . . . . . . . . . . . . . . . Exploration | -11 -10 -10 -8 -8 -8 -8 -7 -7 -7 -7 -6 -6 -6 -6 -5 -5 -4 -4 -4 -3 ------------- Run | Yrd Mat Sub Mat Gar Mat Gar Fac Was Fac Gar Fac Gar Fac Gar Fac Gar Fac Upp Upp Res Turns Passed 31373 | 91 1744 2986 1897 768 721 1143 2024 312 661 1678 3331 1021 1012 1057 2812 1474 2696 1149 61 2735 Spaces Moved 13192 | 53 914 1108 754 401 282 390 670 127 280 376 1566 476 570 536 1235 714 1262 426 32 1020 Core 75 | 3 . . . . . . . . . 66 . . . . . . 5 1 . . Treads 12518 | 50 914 999 731 401 282 390 670 127 280 310 1566 476 570 536 1235 714 1016 255 . 996 Legs 542 | . . 88 . . . . . . . . . . . . . . 228 170 32 24 Wheels 44 | . . 21 23 . . . . . . . . . . . . . . . . . Hover 13 | . . . . . . . . . . . . . . . . . 13 . . . Flight . | . . . . . . . . . . . . . . . . . . . . . Fastest Speed 50 | 50 160 95 95 160 160 238 240 240 160 160 160 152 157 157 157 157 120 158 190 158 Average Speed 185 | 153 160 236 158 160 197 240 240 240 226 358 160 159 157 157 165 174 169 215 190 166 Slowest Speed 1650 | 160 160 260 240 160 245 245 240 240 240 950 160 240 157 157 170 245 1100 1650 190 240 Overloaded Moves . | . . . . . . . . . . . . . . . . . . . . . Propulsion Burnouts . | . . . . . . . . . . . . . . . . . . . . . Robots Hopped . | . . . . . . . . . . . . . . . . . . . . . Potential Cave-ins . | . . . . . . . . . . . . . . . . . . . . . Cave-ins Triggered . | . . . . . . . . . . . . . . . . . . . . . Exploration Rate (%) 43 | 4 93 73 49 50 32 60 21 83 9 44 42 47 22 68 35 62 29 55 8 22 Regions Visited 20 Branch Regions 3 Pre-discovered Areas 6 | . 3 1 1 . . . . . . . . . . . . . . 1 . . Known Exits Taken 10 | . . 1 1 . 1 . . . 1 . 1 . 1 . 1 . 1 1 1 . Unknown Exits Taken 2 | 1 1 . . . . . . . . . . . . . . . . . . . Scrap Searched 13 | . . 10 . . . . . . . . . . . . . . . 2 1 . Spaces Dug 33 | . 4 4 6 3 . 1 7 . . . . . . . 6 . . . . 2 Terrain Destroyed 427 | . 12 21 6 3 18 3 7 . . 40 17 14 . 2 72 4 102 10 . 96 Melee 17 | . . . 6 3 . 1 7 . . . . . . . . . . . . . Projectile 214 | . 12 14 . . 7 2 . . . 3 16 1 . 2 33 4 36 10 . 74 AOE 185 | . . 7 . . 11 . . . . 37 . 12 . . 38 . 64 . . 16 Terrain Rammed . | . . . . . . . . . . . . . . . . . . . . . Walls Destroyed . | . . . . . . . . . . . . . . . . . . . . . Machines Disabled . | . . . . . . . . . . . . . . . . . . . . . Actions | -11 -10 -10 -8 -8 -8 -8 -7 -7 -7 -7 -6 -6 -6 -6 -5 -5 -4 -4 -4 -3 --------- Run | Yrd Mat Sub Mat Gar Mat Gar Fac Was Fac Gar Fac Gar Fac Gar Fac Gar Fac Upp Upp Res Total 17755 | 60 1082 1299 1346 459 384 493 988 132 298 539 2256 611 674 674 1852 855 1562 574 33 1584 Wait 2501 | . 98 75 453 17 52 19 200 . 8 41 514 33 76 55 475 59 54 84 . 188 Move 13176 | 52 913 1107 754 400 281 389 670 126 280 375 1565 474 570 535 1235 713 1261 425 31 1020 Hop . | . . . . . . . . . . . . . . . . . . . . . Pick Up 169 | 3 6 5 22 2 4 6 13 . 2 4 23 6 3 2 7 3 26 6 . 26 Fast Attach 174 | 5 4 6 15 1 3 2 6 . 3 11 16 6 3 3 13 2 30 8 1 36 Attach 102 | . . 7 6 . 2 6 5 . . 10 4 4 . . 6 3 17 8 . 24 Detach 54 | . 1 4 5 . 2 . 2 . . 6 8 2 1 . 4 . 7 2 1 9 Swap 149 | . 3 10 7 7 6 2 13 . . 3 25 14 4 4 14 5 16 2 . 14 Drop 178 | . . . 22 1 6 . 21 . 1 . 33 13 6 7 9 6 23 1 . 29 Fire 1151 | . 56 85 53 24 27 43 18 6 . 80 66 59 11 68 89 63 128 38 . 237 Melee 67 | . . . 9 6 1 2 40 . 4 5 . . . . . . . . . . Ram . | . . . . . . . . . . . . . . . . . . . . . Kick . | . . . . . . . . . . . . . . . . . . . . . Crush 4 | . 1 . . . . . . . . . 2 . . . . . . . . 1 Escape Stasis 28 | . . . . . . 24 . . . 4 . . . . . . . . . . Rewire 1 | . . . . . . . . . . . . . . . . 1 . . . . Trap . | . . . . . . . . . . . . . . . . . . . . . Miscellaneous 1 | . . . . 1 . . . . . . . . . . . . . . . . Route ------- -11/Scrapyard -10/Materials (discovered 6 exits: *Mat x3 / *Min x2 / *Sub) -10/Subcaves (discovered 3 exits: *Mat x2 / Rec) -8/Materials (discovered 4 exits: Fac x3 / Gar) -8/Garrison (discovered 3 exits: *Mat x3) -8/Materials (discovered 2 exits: *Fac / Gar) -8/Garrison (discovered 3 exits: *Fac x3) -7/Factory (discovered 7 exits: *Fac x4 / *Sto / Low x2) -7/Waste -7/Factory -7/Garrison -6/Factory (discovered 4 exits: *Fac / [*Low x2] / Gar) -6/Garrison (discovered 3 exits: *Fac x3) -6/Factory -6/Garrison (discovered 3 exits: *Fac x3) -5/Factory (discovered 4 exits: *Fac / [*Upp] / [*Ext] / Gar) -5/Garrison (discovered 3 exits: *Fac x3) -4/Factory (discovered 3 exits: *Res x2 / *Upp) -4/Upper Caves -4/Upper Caves -3/Research (discovered 1 exit: [*Res]) History --------- Turn | Location | Event 13 | -11/Scrapyard | Discovered new exit (range 14) 92 | -11/Scrapyard | Entered Materials 302 | -10/Materials | Build established: Mutant 518 | -10/Materials | Discovered new exit (range 8) 653 | -10/Materials | Identified exit to Materials 661 | -10/Materials | Discovered exit to Materials (range 5) 744 | -10/Materials | Learned location of 2 exits from Subcaves 776 | -10/Materials | Learned location of 1 exit from Recycling 800 | -10/Materials | Learned 4 Subcaves zone layouts 811 | -10/Materials | Discovered new exit (range 16) 813 | -10/Materials | Identified exit to Mines 837 | -10/Materials | Learned location of Mines (-10) 872 | -10/Materials | Learned 4 Recycling zone layouts 1183 | -10/Materials | Discovered new exit (range 8) 1836 | -10/Materials | Entered Subcaves 1836 | -10/Subcaves | Accompanied by 1 ally 1837 | -10/Subcaves | Approached by a straggling Scientist 1837 | -10/Subcaves | Identified exit to Materials 1838 | -10/Subcaves | Identified exit to Recycling 1980 | -10/Subcaves | Lost 3 parts (1p2n) 2287 | -10/Subcaves | Disturbed a concealed Subdweller 2367 | -10/Subcaves | Learned 4 Materials zone layouts 2430 | -10/Subcaves | A swath of the cavern ceiling suddenly collapsed 2600 | -10/Subcaves | Ambushed by Subdweller buried in earth 2603 | -10/Subcaves | Core integrity fell below 50% 3243 | -10/Subcaves | Learned location of Zion (-6) 3548 | -10/Subcaves | Core integrity fell below 20% 3624 | -10/Subcaves | Visited Clippyterm 3632 | -10/Subcaves | Learned 40 Factory zone layouts 3902 | -10/Subcaves | Shifting Twisted Machinery released Battle Cannon 3955 | -10/Subcaves | Shifting Twisted Machinery released Piercing Trap 4151 | -10/Subcaves | Shifting Twisted Machinery released Battle Rifle 4526 | -10/Subcaves | Build established: Derelict-Mutant 4607 | -10/Subcaves | Shifting Twisted Machinery released Scrap Shield 4610 | -10/Subcaves | Shifting Twisted Machinery released Battle Cannon 4734 | -10/Subcaves | Lost 4 parts (1p1n2w) 4822 | -10/Subcaves | Entered Materials 4822 | -8/Materials | Evolved 4 slots: Propulsion x1, Utility x2, Weapon x1 4885 | -8/Materials | Lost 3 parts (1n2w) 5622 | -8/Materials | Build established: Scavenger-Tank 6091 | -8/Materials | Identified exit to Factory 6152 | -8/Materials | Build established: Mutant 6160 | -8/Materials | Learned location of 1 exit from Lower Caves 6219 | -8/Materials | Learned location of 2 exits from Factory 6303 | -8/Materials | Learned 4 Factory zone layouts 6370 | -8/Materials | Learned Factory stockpile data 6417 | -8/Materials | Learned 4 Factory zone layouts 6474 | -8/Materials | Learned Factory stockpile data 6719 | -8/Materials | Identified exit to Garrison 6719 | -8/Materials | Entered Garrison 6779 | -8/Garrison | Triggered checkpoint 6855 | -8/Garrison | Build established: Tank 6889 | -8/Garrison | Triggered checkpoint 6912 | -8/Garrison | Triggered checkpoint 6972 | -8/Garrison | Destroyed 8 combat bots 7029 | -8/Garrison | Discovered new exit (range 12) 7056 | -8/Garrison | Identified exit to Materials 7089 | -8/Garrison | Triggered checkpoint 7146 | -8/Garrison | Discovered exit to Materials (range 78) 7146 | -8/Garrison | Discovered exit to Materials (range 30) 7146 | -8/Garrison | Discovered exit to Materials (range 40) 7301 | -8/Garrison | Installed Relay Interface Framework 7370 | -8/Garrison | Expanded RIF knowledge: Threat Obfuscation 7437 | -8/Garrison | Garrison Relay disabled 7487 | -8/Garrison | Entered Materials 7616 | -8/Materials | Core integrity fell below 50% 7783 | -8/Materials | Garrison activated, responded to threat 7953 | -8/Materials | Build established: Gunner 8114 | -8/Materials | Discovered exit to Factory (range 4) 8201 | -8/Materials | Identified exit to Garrison 8208 | -8/Materials | Entered Garrison 8456 | -8/Garrison | Lost 5 parts (1n2u2w) 8600 | -8/Garrison | Discovered exit to Factory (range 10) 8709 | -8/Garrison | Build established: Tank 8799 | -8/Garrison | Core integrity fell below 20% 8910 | -8/Garrison | Discovered exit to Factory (range 14) 8968 | -8/Garrison | Triggered checkpoint 9072 | -8/Garrison | Build established: Bothacker-Tank 9172 | -8/Garrison | Triggered checkpoint 9250 | -8/Garrison | Discovered exit to Factory (range 13) 9295 | -8/Garrison | Expanded RIF knowledge: Zone Cloak 9351 | -8/Garrison | Entered Factory 9351 | -7/Factory | Evolved 2 slots: Utility x2 9352 | -7/Factory | Identified exit to Factory 9353 | -7/Factory | Identified exit to Lower Caves 9353 | -7/Factory | Identified exit to Storage 9541 | -7/Factory | Lost 3 parts (1n2u) 9568 | -7/Factory | Build established: Bothacker-Mutant 10109 | -7/Factory | Build established: Bothacker-Gladiator 10305 | -7/Factory | Discovered exit to Factory (range 11) 11375 | -7/Factory | Sucked down chute 11375 | -7/Factory | Entered Waste 11390 | -7/Waste | EMP discharged 11390 | -7/Waste | System corruption reached 10% 11390 | -7/Waste | Spotted C-40 Crusher 11425 | -7/Waste | Spotted C-40 Crusher 11441 | -7/Waste | Spotted C-40 Crusher 11446 | -7/Waste | Spotted C-40 Crusher 11449 | -7/Waste | Spotted C-40 Crusher 11490 | -7/Waste | EMP discharged 11522 | -7/Waste | Spotted C-40 Crusher 11590 | -7/Waste | EMP discharged 11658 | -7/Waste | Discovered new exit (range 13) 11684 | -7/Waste | Identified exit to Factory 11687 | -7/Waste | Entered Factory 11852 | -7/Factory | Build established: Scavenger-Gladiator 12348 | -7/Factory | Identified exit to Garrison 12348 | -7/Factory | Entered Garrison 12558 | -7/Garrison | Triggered checkpoint 12609 | -7/Garrison | Lost 5 parts (1p1n2u1w) 12630 | -7/Garrison | Garrison Relay disabled 13023 | -7/Garrison | Destroyed 8 combat bots 13027 | -7/Garrison | Lost 3 parts (1p1u1w) 13040 | -7/Garrison | Triggered checkpoint 13150 | -7/Garrison | Triggered checkpoint 13166 | -7/Garrison | Core integrity fell below 50% 13218 | -7/Garrison | Lost 3 parts (2n1w) 13259 | -7/Garrison | System corruption reached 30% 13381 | -7/Garrison | Expanded RIF knowledge: Program Shield 13472 | -7/Garrison | Build established: Bothacker-Mutant 14008 | -7/Garrison | Discovered exit to Factory (range 12) 14026 | -7/Garrison | Entered Factory 14026 | -6/Factory | Evolved 2 slots: Propulsion x1, Utility x1 14386 | -6/Factory | Build established: Bothacker-Tank 14481 | -6/Factory | Spotted B-75 Beast 15840 | -6/Factory | Found Prototype Launcher 15852 | -6/Factory | Discovered new exit (range 6) 16007 | -6/Factory | Discovered new exit (range 13) 16495 | -6/Factory | Discovered new exit (range 15) 16964 | -6/Factory | Repaired Imp. Heavy Treads 17065 | -6/Factory | Identified Scatter Rocket Array 17118 | -6/Factory | Build established: Tank 17164 | -6/Factory | Garrison activated, responded to threat 17296 | -6/Factory | Identified exit to Garrison 17357 | -6/Factory | Entered Garrison 17419 | -6/Garrison | Triggered checkpoint 17485 | -6/Garrison | Garrison Relay disabled 17629 | -6/Garrison | Rescued a captive Derelict 17631 | -6/Garrison | Rescued a captive Derelict 17683 | -6/Garrison | Triggered checkpoint 17793 | -6/Garrison | Triggered checkpoint 17829 | -6/Garrison | Expanded RIF knowledge: Signal Jamming 17846 | -6/Garrison | Garrison Relay disabled 17909 | -6/Garrison | Discovered new exit (range 8) 17928 | -6/Garrison | Build established: Scavenger-Tank 18004 | -6/Garrison | Triggered checkpoint 18103 | -6/Garrison | Discovered new exit (range 64) 18103 | -6/Garrison | Discovered new exit (range 39) 18103 | -6/Garrison | Discovered new exit (range 30) 18106 | -6/Garrison | Destroyed 8 combat bots 18156 | -6/Garrison | Garrison Relay disabled 18282 | -6/Garrison | Found Gamma Bomb Array 18298 | -6/Garrison | Found Adv. Powered Armor 18343 | -6/Garrison | Identified exit to Factory 18378 | -6/Garrison | Entered Factory 18578 | -6/Factory | Build established: Tank 19390 | -6/Factory | Identified exit to Garrison 19390 | -6/Factory | Entered Garrison 19484 | -6/Garrison | Triggered checkpoint 19520 | -6/Garrison | Expanded RIF knowledge: Threat Obfuscation 19647 | -6/Garrison | Destroyed 10 combat bots 19710 | -6/Garrison | Discovered new exit (range 14) 19729 | -6/Garrison | Identified exit to Factory 19921 | -6/Garrison | Triggered checkpoint 19980 | -6/Garrison | Triggered checkpoint 20020 | -6/Garrison | Garrison Relay disabled 20040 | -6/Garrison | Discovered exit to Factory (range 21) 20142 | -6/Garrison | Triggered checkpoint 20204 | -6/Garrison | Discovered exit to Factory (range 13) 20216 | -6/Garrison | Triggered checkpoint 20447 | -6/Garrison | Entered Factory 20447 | -5/Factory | Evolved 2 slots: Power x1, Weapon x1 20518 | -5/Factory | Allied Derelicts emerged from ambush trap array 20708 | -5/Factory | Lost 3 allies 21028 | -5/Factory | Repaired Adv. Powered Armor 22097 | -5/Factory | Lost 3 parts (1p2u) 22256 | -5/Factory | Discovered new exit (range 6) 22570 | -5/Factory | Discovered new exit (range 15) 22889 | -5/Factory | Build established: Scavenger-Tank 22890 | -5/Factory | Garrison activated, responded to threat 22980 | -5/Factory | Discovered new exit (range 10) 23140 | -5/Factory | Spotted B-75 Beast 23259 | -5/Factory | Identified exit to Garrison 23259 | -5/Factory | Entered Garrison 23299 | -5/Garrison | Triggered checkpoint 23354 | -5/Garrison | Garrison Relay disabled 23432 | -5/Garrison | Triggered checkpoint 23467 | -5/Garrison | Destroyed 11 combat bots 23597 | -5/Garrison | Discovered new exit (range 11) 23629 | -5/Garrison | Triggered checkpoint 23654 | -5/Garrison | Garrison Relay disabled 23778 | -5/Garrison | Triggered checkpoint 23882 | -5/Garrison | Triggered checkpoint 23941 | -5/Garrison | Learned Factory security intel 24001 | -5/Garrison | Expanded RIF knowledge: Alert ID Control 24306 | -5/Garrison | Discovered new exit (range 14) 24444 | -5/Garrison | Discovered new exit (range 8) 24535 | -5/Garrison | Triggered checkpoint 24571 | -5/Garrison | Garrison Relay disabled 24732 | -5/Garrison | Identified exit to Factory 24733 | -5/Garrison | Entered Factory 24733 | -4/Factory | Evolved 2 slots: Propulsion x2 25312 | -4/Factory | Spotted B-86 Titan 25313 | -4/Factory | Garrison activated, responded to threat 25368 | -4/Factory | Destroyed 7 combat bots 25420 | -4/Factory | Destroyed B-86 Titan 25421 | -4/Factory | Lost 17 parts (3p4n4u6w) 25484 | -4/Factory | System corruption reached 10% 25523 | -4/Factory | Found Hvy. Reflective Plating 26553 | -4/Factory | Discovered new exit (range 5) 26607 | -4/Factory | Identified exit to Upper Caves 26727 | -4/Factory | Discovered new exit (range 5) 26743 | -4/Factory | Identified exit to Research 26916 | -4/Factory | Discovered exit to Research (range 6) 27233 | -4/Factory | First assault squad dispatched 27429 | -4/Factory | Entered Upper Caves 27486 | -4/Upper Caves | Lost 6 parts (1n2u3w) 27634 | -4/Upper Caves | Learned location of Armory (-3) 28024 | -4/Upper Caves | Attacked by a faux Warlord 28344 | -4/Upper Caves | Attracted the attention of an 0b10 checkpoint 28534 | -4/Upper Caves | Discovered new exit (range 11) 28552 | -4/Upper Caves | Identified exit to Upper Caves 28578 | -4/Upper Caves | Entered another Upper Caves area 28578 | -4/Upper Caves | Accompanied by 2 allies 28578 | -4/Upper Caves | Discovered exit to Research (range 10) 28639 | -4/Upper Caves | Entered Research 28639 | -3/Research | Accompanied by 2 allies 28639 | -3/Research | Evolved 2 slots: Utility x2 28830 | -3/Research | Unchained authorized (CL-0N3) 28877 | -3/Research | Spotted B-86 Titan 29086 | -3/Research | K-01 Serf reconstituted as Access Guard 29086 | -3/Research | Spotted Access Guard 29134 | -3/Research | Destroyed Access Guard 29134 | -3/Research | Access Guard reconstituted as CL-0N3 29295 | -3/Research | Destroyed 7 combat bots 29422 | -3/Research | K-01 Serf reconstituted as Executioner 29425 | -3/Research | Spotted Executioner 29435 | -3/Research | Destroyed Executioner 29435 | -3/Research | Executioner reconstituted as CL-0N3 29661 | -3/Research | Spotted Cetus Guard 29704 | -3/Research | Destroyed Cetus Guard 29704 | -3/Research | Cetus Guard reconstituted as CL-0N3 29752 | -3/Research | Lost 3 parts (1p2w) 29921 | -3/Research | Discovered new exit (range 8) 29953 | -3/Research | K-01 Serf reconstituted as Thunder 29964 | -3/Research | System corruption reached 10% 29970 | -3/Research | Spotted Thunder 29996 | -3/Research | Destroyed Thunder 29996 | -3/Research | Thunder reconstituted as CL-0N3 30024 | -3/Research | Lost 3 parts (1u2w) 30278 | -3/Research | Spotted B-86 Titan 30291 | -3/Research | Core integrity fell below 50% 30323 | -3/Research | Destroyed B-86 Titan 30352 | -3/Research | Lost 5 parts (1n4u) 30445 | -3/Research | Found Quantum Capacitor 30529 | -3/Research | U-05 Engineer reconstituted as S7 Guard 30531 | -3/Research | Spotted S7 Guard 30583 | -3/Research | Destroyed S7 Guard 30583 | -3/Research | S7 Guard reconstituted as CL-0N3 30860 | -3/Research | Lost 3 parts (1n2w) 30968 | -3/Research | U-05 Engineer reconstituted as Quarantine Guard 30968 | -3/Research | Spotted Quarantine Guard 30986 | -3/Research | Destroyed Quarantine Guard 30986 | -3/Research | Quarantine Guard reconstituted as CL-0N3 31206 | -3/Research | Lost 4 parts (1p1n1u1w) 31305 | -3/Research | Lost 4 parts (1n1u2w) 31357 | -3/Research | K-01 Serf reconstituted as Armor Guard 31360 | -3/Research | Spotted Armor Guard 31374 | -3/Research | Self-destructed Last Messages --------------- 31360_ Slug penetrates Wall. 31360_ Slug penetrates H-77 Assassin. 31360_ H-77 Assassin destroyed. 31360_ Slug penetrates Wall. 31361_ K-01 Serf collects debris. 31361_ Penetrated by Slug. 31361_ Slug penetrates Wall. 31361_ ALERT: Construction progress impeded, dispatching reinforcements to local area. 31363_ Penetrated by Slug. 31363_ Slug penetrates Wall. 31364_ Penetrated by Slug. 31364_ Nova Cannon destroyed. 31364_ Penetrated by Slug. 31366_ System corrupted: Energy discharge (-15). 31367_ R-10 Processor collects Coil Gun+. 31370_ R-10 Processor collects Corrupted Coil Gun+. 31372_ Gamma Rifle destroyed. [Achievement: Punisher] Map ----- +----------------------------------------------------+ | ?????????????????????????????????????????????????? | | ?????????????????????????????????????????????????? | | ?????????????????????????????????????????????????? | | ?????????????????????????????????????????????????? | | ?????????????????????????????????????????????????? | | ?????????????????????????????????????????????????? | | ?????????????????????????????????????????????????? | | ?????????????????????????????????????????????????? | | ?????????????????????????????????????????????????? | | ?????????????????????????????????????????????????? | | ?????????????????????????????????????????????????? | | ?????????????????????????????????????????????????? | | ?????????????????????????????#???????????????????? | | ???????????????????????????? #???????????????????? | | ???????????????????????????? #???????????????????? | | ??????????????????????????? #???????????????????? | | ?????????????????????????? #???????????????????? | | ?????????????????????????? #???????????????????? | | ????????????????????????? #???????????????????? | | ?????#########??######### #???????????????????? | | ???###### #### ##+###??????????????? | | ???# % [ #??????????????? | | ???# % % =%= !%| #??????????????? | | ???#% ###! #####[[ ### ????????????????? | | ???# #############u#h########???????????????????? | | ???# ##?????# Y @#??????????????????????? | | ##?# ######## = #??????????????????????? | | # # # #??????????????????????? | | # # ] # #??????????????????????? | | # # # #??????????????????????? | | " + # # #??????????????????????? | | " # # "" # #??????????????????????? | | # # "" # #??????????????????????? | | # %# "" # #??????????????????????? | | #% # S # = #??????????????????????? | | #### # "" # #??????????????????????? | | %%# "" # #??????????????????????? | | / "" ##############??????????????????????? | | #!! # #?????????????????????????????????? | | ! [ !#%[! ##??????????????????????????????????? | | =!=! ####+######????????????????????????????????? | | =% [!=% #????????????????????????????????? | | ! [=[*!=[ [ % # ""??????????????????????????? | | ^#!*#####+#### #????????????????????????????????? | | *#![# %*% # #????????????????????????????????? | | %#### = % # + ???????????????????????????????? | | #??# # # ??????????????????????????????? | | #??# # #? ?????????????????????????????? | | ##### # #??? ???????????????????????????? | | # # #???? ??????????????????????????? | +----------------------------------------------------+ Best States ------------- Heat Dissipation 84 Coolant Potential 80 Energy Generation 51 Energy Capacity 1020 Matter Stores 436 Matter Capacity 550 Sight Range 22 Robot Scan Range 16 Terrain Scan Density 10 Additional Mass Support 12 EM Shielding 3 Corruption Containment 12 Armor Coverage 1200 Resistance: KI 30 Resistance: TH 30 Resistance: EM 15 Power Shielding 66 Weapon Shielding 66 Weapon Cycling 25 Evasion (%) 55 Targeting Accuracy 8 Melee Accuracy 11 Recoil Reduction 6 Matter Filtering 30 Particle Charging 25 Kinecelleration 30 Offensive Hacking 14 Relay Coupler Types 1 Relay Coupler Value 26 Item Schematics ----------------- Flight Unit | -10/Materials | Hacked EM Pulse Gun | -8/Materials | Scanalyzed Imp. Force Field | -6/Factory | Hacked Robot Schematics ------------------ None Fabricated ------------ Nothing Repaired ---------- Imp. Heavy Treads | 2% | -6/Factory Adv. Powered Armor | 19% | -5/Factory Studied --------- Lgt. Nuclear Core | -8/Materials | Hacked Coil Gun | -6/Factory | Hacked Hvy. Machine Gun | -6/Factory | Hacked Alien Tech Used ----------------- None Achievements -------------- Hackerman Punisher Tank Life The Better Part Of Valor Challenges ------------ None Game ------ Seed DroneAntigravFlamer Manual? 0 Play Time 03:22:18 Cumulative 130.8 hours Start 2026.03.12 @ 12:22:51 End 2026.03.13 @ 11:48:31 Sessions 5 Manual Loads 0 Difficulty Rogue Special Mode None Game No. 256 Rogue 256 Adventurer 0 Explorer 0 Win Type - Total 3 Types 2/0/0/1/0/0/0/0/0/0 Lore% 58 Gallery% 58 Achievement% 43 Wizard Run 0 Options --------- Layout 2 ASCII 0 Keyboard 1 Movement Numpad Keybinds 0 Fullscreen 1 Font 24/Smallcaps Map View 50x44 Zoom Use 0% Tactical HUD 1 Map Filters NONE Filters NONE Steam 1 RUN: 9cba2cdc-fa49-4288-b190-082fe73b437b